Workbook

Sheet 1. Forside
A1: Guldborgsund Spildevand A/S
D8: Bilag A
D13: Indholdsfortegnelse
C16: Fane nr. 2 | D16: Samlet prisloft
C17: Fane nr. 3 | D17: Driftsomkostninger
C18: Fane nr. 4 | D18: Historiske investeringer
C19: Fane nr. 5 | D19: Gennemførte investeringer
C20: Fane nr. 6 | D20: Korrektion investeringer
C21: Fane nr. 7 | D21: Planlagte investeringer
C22: Fane nr. 8 | D22: 1:1 omkostninger
C23: Fane nr. 9 | D23: Miljø- og servicemål
C24: Fane nr. 10 | D24: Klimatilpasning
C25: Fane nr. 11 | D25: Nettofinansielle poster
C26: Fane nr. 12 | D26: Over- eller underdækning
C27: Fane nr. 13 | D27: Kontrol med indtægtsrammen og oversigt over ekstraordinære effektiviseringsgevinster

Sheet 2. Samlet prisloft
A1: ='1. Forside'!A1 -> Guldborgsund Spildevand A/S
B4: Fane 2. Samlet prisloft for 2015
B6: Driftsomkostninger
B7: Driftsomkostninger i prisloftet for 2014 | C7: ='3. Driftsomkostninger'!C20 -> 43904556.33 | D7: kr.
B8: Bortfald af væsentlige omkostninger | C8: =-'3. Driftsomkostninger'!C16 -> 0 | D8: kr.
B9: Korrektion for prisudviklingen 2014-2015 | C9: ='3. Driftsomkostninger'!C22 -> 35123.64506 | D9: kr.
B10: Forhøjelse til effektivt niveau iht. benchmarkingen | C10: ='3. Driftsomkostninger'!C28 -> 0 | D10: kr.
B11: Korrektion for generelt effektiviseringskrav | C11: =-'3. Driftsomkostninger'!C34 -> -193180.0478 | D11: kr.
B12: Korrektion for individuelt effektiviseringskrav | C12: =-'3. Driftsomkostninger'!C43 -> 0 | D12: kr.
B13: Driftsomkostninger i alt | C13: =SUM(C7:C12) -> 43746499.93 | D13: kr. | E13: =C13 -> 43746499.93 | F13: kr.
B14: Investeringer
B15: Tillæg for historiske investeringer | C15: ='4. Historiske investeringer'!C9 -> 56788449.63 | D15: kr.
B16: Tillæg for gennemførte investeringer i 2011-2013 | C16: ='5. Gennemførte investeringer'!F29 -> 11752836.21 | D16: kr.
B17: Korrektion af tillæg for planlagte investeringer vedrørende 2013 | C17: ='6. Korrektion investeringer'!C10 -> 994545.0333 | D17: kr.
B18: Tillæg for planlagte investeringer i 2014 og 2015 | C18: ='7. Planlagte investeringer'!F24 -> 2132166.667 | D18: kr.
B19: Investeringstillæg i alt | C19: =SUM(C15:C18) -> 71667997.54 | D19: kr. | E19: =C19 -> 71667997.54 | F19: kr.
B20: Øvrige omkostninger mv.
B21: Tillæg for 1:1 omkostninger i 2015 | C21: ='8. 1-1 omkostninger'!C11 -> 5111000 | D21: kr.
B22: Tillæg vedr. revisorerklæringer og DANVA/FVD-kontingent | C22: ='8. 1-1 omkostninger'!C19 -> 145000 | D22: kr.
B23: Korrektion ift. faktiske 1:1 omkostninger i 2013 | C23: ='8. 1-1 omkostninger'!C25 -> -2325035 | D23: kr.
B24: Tillæg for driftsomkostninger til miljø- og servicemål i 2015 | C24: ='9. Miljø- og servicemål'!C8 -> 0 | D24: kr.
B25: Korrektion ift. faktiske driftsomkostninger til miljø- og servicemål i 2013 | C25: ='9. Miljø- og servicemål'!C15 -> 0 | D25: kr.
B26: Tillæg for driftsomkostninger til medfinansiering af klimatilpasningsprojekter i 2015 | C26: ='10. Klimatilpasning'!C9 -> 0 | D26: kr.
B27: Korrektion ift. faktiske omkostninger til medfinansiering af klimatilpasningsprojekter i 2013 | C27: ='10. Klimatilpasning'!C16 -> 0 | D27: kr.
B28: Tillæg/fradrag for nettofinansielle poster i 2015 | C28: ='11. Nettofinansielle poster'!C9 -> 10700000 | D28: kr.
B29: Korrektion ift. faktiske nettofinansielle poster i 2013 | C29: ='11. Nettofinansielle poster'!C16 -> -8166718 | D29: kr.
B30: Øvrige omkostninger mv. i alt | C30: =SUM(C21:C29) -> 5464247 | D30: kr. | E30: =C30 -> 5464247 | F30: kr.
B31: Historisk over- eller underdækning
B32: Tillæg/fradrag for over- eller underdækning til og med 2010 | C32: ='12. Over- eller underdækning'!C11 -> 581683.373 | D32: kr. | E32: =C32 -> 581683.373 | F32: kr.
B33: Korrektion i forhold til tidligere indtægtsramme
B34: Korrektion for overholdelse af indtægtsramme i prisloft 2013 | C34: ='13. Kontrol med indtægtsrammen'!E27 -> 442473.4205 | D34: kr. | E34: =C34 -> 442473.4205 | F34: kr.
B35: Samlet prisloft
B36: Indtægtsramme i 2015 | E36: =SUM(E13:E34) -> 121902901.3 | F36: kr.
B37: Debiteret vandmængde i 2013 | E37: 2577083 | F37: m3
B38: Prisloft 2015 | E38: =E36/E37 -> 47.30266789 | F38: kr./m3

Sheet 3. Driftsomkostninger
A1: ='1. Forside'!A1 -> Guldborgsund Spildevand A/S
B4: Fane 3. Driftsomkostninger
B6: Driftsomkostningerne i prisloftet for 2014
B7: Korrigerede driftsomkostninger i prisloftet for 2013 (DOiPL 2013) | C7: 43898083.08 | D7: kr.
B8: Prisfremskrivning 1,5 pct. | C8: =0.015*SUM(C7:C7) -> 658471.2462 | D8: kr.
B9: Generelt effektiviseringskrav (0 pct.) | C9: 0 | D9: kr.
B10: Individuelt effektiviseringskrav | C10: -651998 | D10: kr.
B11: Driftsomkostningerne i prisloftet for 2014 (DOiPL 2014) | C11: =SUM(C7:C10) -> 43904556.33 | D11: kr.
B14: Korrektion for forventet bortfald af væsentlige omkostninger
B15: Selskabets indberettede bortfald af væsentlige omkostninger inden 2015 | C15: 0 | D15: kr.
B16: Korrektion for forventet bortfald | C16: =SUM(C15:C15) -> 0 | D16: kr.
B19: Korrektion for prisudviklingen fra 2014-2015
B20: Driftsomkostningerne i prisloftet for 2014 | C20: =C11-C16 -> 43904556.33 | D20: kr.
B21: Prisudvikling 2014 - 2015 | C21: 0.08 | D21: pct.
B22: Korrektion for prisudvikling | C22: =C20*(C21/100) -> 35123.64506 | D22: kr.
B25: Eventuel forhøjelse til effektivt niveau iht. benchmarkingen
B26: Selskabets effektive driftsomkostninger iht. benchmarkingen | C26: 36414439.02 | D26: kr.
B27: Selskabets pristalskorrigerede driftsomkostninger i 2015-niveau | C27: =C20+C22 -> 43939679.97 | D27: kr.
B28: Eventuel forhøjelse til effektivt niveau | C28: =IF(C27>C26,0,C26-C27) -> 0 | D28: kr.
B31: Korrektion for generelt effektiviseringskrav
B32: Driftsomkostningerne i prisloftet for 2014 | C32: =C20 -> 43904556.33 | D32: kr.
B33: Generelt effektiviseringskrav | C33: 0.44 | D33: pct.
B34: Endeligt generelt effektiviseringskrav | C34: =C32*(C33/100) -> 193180.0478 | D34: kr.
B37: Korrektion for individuelt effektiviseringskrav
B38: Rå effektiviseringspotentiale | C38: 7740373.281 | D38: kr.
B39: Effektiviseringspotentiale efter eventuel korrektion for særlige forhold | C39: 7490117.31 | D39: kr.
B40: Effektiviseringspotentiale efter forsigtighedshensyn | C40: 1584954.483 | D40: kr.
B41: Effektiviseringspotentiale efter eventuel korrektion for sammensætning af signifikante costdrivere | C41: 1584954.483 | D41: kr.
B42: Umiddelbart effektiviseringskrav | C42: =C41/4 -> 396238.6209 | D42: kr.
B43: Endeligt individuelt effektiviseringskrav | C43: =IF(C42>0.05*C20,0.05*C20,IF(C42<0.01*C20,0,C42)) -> 0 | D43: kr.

Sheet 4. Historiske investeringer
A1: ='3. Driftsomkostninger'!A1 -> Guldborgsund Spildevand A/S
B4: Fane 4. Historiske investeringer
B6: Tillæg for historiske investeringer
B7: Værdi af selskabets materielle anlægsaktiver pr. 1. januar 2010 | C7: 2254184218 | D7: kr.
B8: Den årlige standardafskrivning på de materielle anlægsaktiver iht. POLKA | C8: 56788449.63 | D8: kr.
B9: Tillæg i alt i 2015 | C9: =C8 -> 56788449.63 | D9: kr.

Sheet 5. Gennemførte investeringer
A1: ='4. Historiske investeringer'!A1 -> Guldborgsund Spildevand A/S
B4: Fane 5. Gennemførte investeringer i 2010 - 2013
B6: Tillæg for gennemførte investeringer i 2013
B7: Beskrivelse af investeringen | C7: Årstal | D7: Std. levetid (år) | E7: Anskaffelses-pris (kr.) | F7: Afskrivning
B8: Brønde | C8: 2013 | D8: 75 | E8: 2074496 | F8: =E8/D8 -> 27659.94667 | G8: kr.
B9: Stik | C9: 2013 | D9: 75 | E9: 35625104 | F9: =E9/D9 -> 475001.3867 | G9: kr.
B10: Arbejdsplads | C10: 2013 | D10: 5 | E10: 256490 | F10: 51298 | G10: kr.
B11: Overbygning | C11: 2013 | D11: 75 | E11: 220038 | F11: 2933.84 | G11: kr.
B12: Kælder (< 7 m2) | C12: 2013 | D12: 75 | E12: 200405 | F12: 2672.066667 | G12: kr.
B13: Kælder | C13: 2013 | D13: 75 | E13: 675180 | F13: 9002.4 | G13: kr.
B14: Pumpestationer i underjordiske bygværker ( | C14: 2013 | D14: 50 | E14: 1215728 | F14: 24314.56 | G14: kr.
B15: Kælder | C15: 2013 | D15: 75 | E15: 1775995 | F15: 23679.93333 | G15: kr.
B16: Kælder (7 - 20 m2) | C16: 2013 | D16: 75 | E16: 7552174 | F16: 100695.6533 | G16: kr.
B17: Installationer "ingen eller faste riste" (mindre end 7 m2) | C17: 2013 | D17: 20 | E17: 2829849 | F17: 141492.45 | G17: kr.
B18: Installationer "mekaniske riste og SRO" Miljøklasse A. (7-20 m2) - SRO | C18: 2013 | D18: 10 | E18: 2138133 | F18: 213813.3 | G18: kr.
B19: Ledningsnet = Ø 200 mm | C19: 2013 | D19: 75 | E19: 24590523 | F19: 327873.64 | G19: kr.
B20: Tryksatte minipumpestationer (husstandssystemer) | C20: 2013 | D20: 30 | E20: 29231109 | F20: 974370.3 | G20: kr.
B21: Pumpestationer i brønde (< 6,25 m2), SRO | C21: 2013 | D21: 10 | E21: 636493 | F21: 63649.3 | G21: kr.
B22: Pumpeinstallation Miljøklasse A (100-300 l/s) - Mek/EL | C22: 2013 | D22: 20 | E22: 3221107 | F22: 161055.35 | G22: kr.
B23: Pumpeinstallation Miljøklasse A (100-300 l/s) - SRO | C23: 2013 | D23: 10 | E23: 1119996 | F23: 111999.6 | G23: kr.
B24: Pumpestationer i brønde (< 6,25 m2), Mek/EL | C24: 2013 | D24: 20 | E24: 1215728 | F24: 60786.4 | G24: kr.
B25: Beluftningstanke, Mek/EL | C25: 2013 | D25: 20 | E25: 112433 | F25: 5621.65 | G25: kr.
B26: Strømpeforing = Ø 200 mm | C26: 2013 | D26: 50 | E26: 10355137 | F26: 207102.74 | G26: kr.
B27: Tillæg for 2013 | F27: =SUM(F8:F26) -> 2985022.517 | G27: kr.
B28: Tillæg for 2010 - 2012 | F28: 8767813.697 | G28: kr.
B29: Samlet tillæg for gennemførte investeringer | F29: =F27+F28 -> 11752836.21 | G29: kr.

Sheet 6. Korrektion investeringer
A1: ='5. Gennemførte investeringer'!A1 -> Guldborgsund Spildevand A/S
B4: Fane 6. Korrektion af tillæg for planlagte investeringer
B6: Korrektion af tillæg for planlagte investeringer vedr. 2013
B7: Tillæg for planlagte investeringer i 2013 i prisloft 2013 | C7: 2287333 | D7: kr.
B8: Tillæg for planlagte investeringer i 2013 i prisloft 2014 | C8: 2688167 | D8: kr.
B9: Selskabets faktiske afskrivninger på gennemførte investeringer i 2013 | C9: ='5. Gennemførte investeringer'!F27 -> 2985022.517 | D9: kr.
B10: Korrektion af tillæg for planlagte investeringer vedr. 2013 | C10: =C9-C7+C9-C8 -> 994545.0333 | D10: kr.

Sheet 7. Planlagte investeringer
A1: ='6. Korrektion investeringer'!A1 -> Guldborgsund Spildevand A/S
B4: Fane 7. Planlagte investeringer
B6: Tillæg for planlagte investeringer i 2014 og 2015
B7: Beskrivelse af investeringen | C7: Årstal | D7: Std. levetid (år) | E7: Anskaffelses-pris (kr.) | F7: Afskrivning
B8: Ledningsnet = Ø 200 mm | C8: 2014 | D8: 75 | E8: 5000000 | F8: =E8/D8 -> 66666.66667 | G8: kr.
B9: Stik | C9: 2014 | D9: 75 | E9: 800000 | F9: =E9/D9 -> 10666.66667 | G9: kr.
B10: Ledningsnet = Ø 200 mm | C10: 2014 | D10: 75 | E10: 23000000 | F10: =E10/D10 -> 306666.6667 | G10: kr.
B11: Andre bygninger (tekniske installationer, målere mv.) | C11: 2014 | D11: 75 | E11: 3000000 | F11: 40000 | G11: kr.
B12: Brønde | C12: 2014 | D12: 75 | E12: 600000 | F12: 8000 | G12: kr.
B13: Ledningsnet = Ø 200 mm | C13: 2014 | D13: 75 | E13: 3000000 | F13: 40000 | G13: kr.
B14: Strømpeforing = Ø 200 mm | C14: 2014 | D14: 50 | E14: 20000000 | F14: 400000 | G14: kr.
B15: Pumpestationer i brønde (< 6,25 m2), Mek/EL | C15: 2014 | D15: 20 | E15: 670000 | F15: 33500 | G15: kr.
B16: Ledningsnet = Ø 200 mm | C16: 2014 | D16: 75 | E16: 1000000 | F16: 13333.33333 | G16: kr.
B17: Administrationbygninger | C17: 2014 | D17: 75 | E17: 1000000 | F17: 13333.33333 | G17: kr.
B18: Pumpestationer m. overbygning (< 20 m2), Konstruktioner | C18: 2014 | D18: 50 | E18: 10000000 | F18: 200000 | G18: kr.
B19: Strømpeforing = Ø 200 mm | C19: 2015 | D19: 50 | E19: 15000000 | F19: 300000 | G19: kr.
B20: Pumpestationer i brønde (< 6,25 m2), SRO | C20: 2015 | D20: 10 | E20: 5000000 | F20: 500000 | G20: kr.
B21: Ledningsnet = Ø 200 mm | C21: 2015 | D21: 75 | E21: 15000000 | F21: 200000 | G21: kr.
B22: Tillæg for 2014 | F22: =SUMIF(C8:C21,"2014",F8:F21) -> 1132166.667 | G22: kr.
B23: Tillæg for 2015 | F23: =SUMIF(C8:C21,"2015",F8:F21) -> 1000000 | G23: kr.
B24: Tillæg i alt | F24: =F22+F23 -> 2132166.667 | G24: kr.

Sheet 8. 1-1 omkostninger
A1: ='7. Planlagte investeringer'!A1 -> Guldborgsund Spildevand A/S
B4: Fane 8. 1:1 omkostninger
B6: Tillæg for budgetterede 1:1 omkostninger i 2015
B7: Betaling til Forsyningssekretariatet | C7: 33000 | D7: kr.
B8: Spildevandsafgift | C8: 2000000 | D8: kr.
B9: Køb af varer og tjenesteydelser hos et andet prisloftreguleret vandselskab | C9: 3000000 | D9: kr.
B10: Ejendomsskatter | C10: 78000 | D10: kr.
B11: Tillæg i alt | C11: =SUM(C7:C10) -> 5111000 | D11: kr.
B16: Tillæg for budgetterede nødvendige udgifter til revisorerklæringer samt ordinært medlemskab af DANVA og FVD i 2015
B17: Betaling for ordinært medlemskab af DANVA/FVD | C17: 113000 | D17: kr.
B18: Betaling for revisorerklæringer | C18: 32000 | D18: kr.
B19: Tillæg i alt | C19: =SUM(C17:C18) -> 145000 | D19: kr.
B22: Korrektion af tillæg for faktiske 1:1 omkostninger (inkl. revisorerklæringer og ordinært medlemskab af DANVA/FVD) i 2013
B23: Selskabets faktiske 1:1 omkostninger mv. i 2013, jf. reguleringsregnskabet | C23: 3519437 | D23: kr.
B24: Tillæg for budgetterede 1:1 omkostninger mv. i prisloft 2013 | C24: 5844472 | D24: kr.
B25: Korrektion af tillæg for budgetterede 1:1 omkostninger mv. i 2013 | C25: =C23-C24 -> -2325035 | D25: kr.

Sheet 9. Miljø- og servicemål
A1: ='8. 1-1 omkostninger'!A1 -> Guldborgsund Spildevand A/S
B4: Fane 9. Driftsomkostninger til miljø- og servicemål
B6: Tillæg for budgetterede driftsomkostninger til miljø- og servicemål i 2015
C7: 0 | D7: kr.
B8: Tillæg i alt | C8: =SUM(C7:C7) -> 0 | D8: kr.
B12: Korrektion af tillæg for faktiske driftsomkostninger til miljø- og servicemål i 2013
B13: Selskabets faktiske driftsomkostninger til miljø- og servicemål i 2013, jf. reguleringsregnskabet | C13: 0 | D13: kr.
B14: Tillæg for budgetterede driftsomkostninger til miljø- og servicemål i prisloft 2013 | C14: 0 | D14: kr.
B15: Korrektion af tillæg for budgetterede driftsomkostninger til miljø- og servicemål i 2013 | C15: =C13-C14 -> 0 | D15: kr.

Sheet 10. Klimatilpasning
A1: ='9. Miljø- og servicemål'!A1 -> Guldborgsund Spildevand A/S
B4: Fane 10. Medfinansiering af klimatilpasningsprojekter
B7: Tillæg for budgetterede omkostninger til medfinansiering af klimatilpasningsprojekter i 2015
C8: 0 | D8: kr.
B9: Tillæg i alt | C9: =SUM(C8:C8) -> 0 | D9: kr.
B13: Korrektion af tillæg for faktiske omkostninger til medfinansiering af klimatilpasningsprojekter i 2013
B14: Selskabets faktiske driftsomkostninger til klimatilpasningsprojekter i 2013, jf. reguleringsregnskabet | C14: 0 | D14: kr.
B15: Tillæg for budgetterede driftsomkostninger til klimatilpasningsprojekter i prisloft 2013 | C15: 0 | D15: kr.
B16: Korrektion af tillæg for budgetterede omkostninger til klimatilpasningsprojekter i 2013 | C16: =C14-C15 -> 0 | D16: kr.

Sheet 11. Nettofinansielle poster
A1: ='10. Klimatilpasning'!A1 -> Guldborgsund Spildevand A/S
B4: Fane 11. Nettofinansielle poster
B6: Tillæg for budgetterede nettofinansielle poster i 2015
B7: Budgetterede renteudgifter og gebyrer i 2015 | C7: 11000000 | D7: kr.
B8: Budgetterede renteindtægter i 2015 | C8: 300000 | D8: kr.
B9: Tillæg/fradrag i alt | C9: =C7-C8 -> 10700000 | D9: kr.
B13: Korrektion af tillæg for faktiske nettofinansielle poster i 2013
B14: Selskabets faktiske nettofinansielle poster i 2013, jf. reguleringsregnskabet | C14: 8605389 | D14: kr.
B15: Tillæg for budgetterede nettofinansielle poster i prisloft 2013 | C15: 16772107 | D15: kr.
B16: Korrektion af tillæg for budgetterede nettofinansielle poster i 2013 | C16: =C14-C15 -> -8166718 | D16: kr.

Sheet 12. Over- eller underdækning
A1: ='11. Nettofinansielle poster'!A1 -> Guldborgsund Spildevand A/S
B4: Fane 12. Over- eller underdækning til og med 2010
B6: Tillæg/fradrag for over- eller underdækning til og med 2010
B7: Opgjort over- eller underdækning per 31. december 2010 | C7: 7852725 | D7: kr.
B8: Heraf beløb indregnet i prislofterne for 2011 - 2014 | C8: 4362624.762 | D8: kr.
B9: Endnu ikke indregnet over- eller underdækning | C9: =C7-C8 -> 3490100.238 | D9: kr.
B10: Resterende indregningsperiode (fastsat i prisloftet for 2012) | C10: 6 | D10: år
B11: Tillæg/fradrag i alt | C11: =IF(C7=0,0,C9/C10) -> 581683.373 | D11: kr.

Sheet 13. Kontrol med indtægtsrammen
A1: ='12. Over- eller underdækning'!A1 -> Guldborgsund Spildevand A/S
B4: Fane 13. Korrektion for overholdelse af indtægtsrammen i prisloftet for 2013
B6: Samlet opgørelse vedrørende overholdelse af indtægtsrammen i prisloftet for 2013
B7: Indtægtsramme i prisloftet for 2013 | E7: 143060849.9 | F7: kr.
B8: Ikke anvendt likviditet vedrørende investeringer i 2013
B9: Tillæg for historiske investeringer | C9: 57748180.43 | D9: kr.
B10: Tillæg for gennemførte investeringer i 2011 | C10: 5386235 | D10: kr.
B11: Korrektion af tillæg for planlagte investeringer i 2011 | C11: 2348884 | D11: kr.
B12: Tillæg for planlagte investeringer i 2012 og 2013 | C12: 5696033 | D12: kr.
B13: Indtægter fra tilslutningsbidrag | C13: 18145960 | D13: kr.
B14: Indtægter fra salg af anlægsaktiver | C14: 0 | D14: kr.
B15: Erstatninger vedr. anlægsaktiver mv. | C15: 0 | D15: kr.
B16: Ekstraordinær effektiviseringsgevinst anvendt til investeringer | C16: 0 | D16: kr.
B17: Udgifter til investeringer | C17: -59793278 | D17: kr.
B18: Ikke anvendt likviditet vedr. investeringer i alt | C18: =SUM(C9:C17) -> 29532014.43 | D18: kr. | E18: =IF(C18<0,0,-C18) -> -29532014.43 | F18: kr.
B19: Ekstraordinære effektiviseringsgevinster anvendt til takstnedsættelse
B20: Ekstraordinær effektiviseringsgevinst anvendt til takstnedsættelse | C20: 15344298 | D20: kr. | E20: =-C20 -> -15344298 | F20: kr.
B21: Korrektion af ikke opkrævet tillæg fra 2011 i prisloft 2013
B22: Korrektion af ikke opkrævet tillæg fra 2011 i prisloft 2013 | C22: 0 | D22: kr. | E22: =-C22 -> 0 | F22: kr.
B23: Indtægter fra primære aktiviteter mv.
B24: Indtægter fra kubikmetertakster, faste takster, særbidrag, målergebyrer samt andre takster og gebyrer | C24: 97742064 | D24: kr.
B25: Andre indtægter i prisloftåret, som selskabet har opnået i forbindelse med eller som følge af selskabets primære aktiviteter | C25: 0 | D25: kr.
B26: Indtægter fra primære aktiviteter mv. i alt | C26: =SUM(C24:C25) -> 97742064 | D26: kr. | E26: =-C26 -> -97742064 | F26: kr.
B27: Tillæg/fradrag i prisloftet for 2015 i alt | E27: =E7+E18+E20+E22+E26 -> 442473.4205 | F27: kr.
B31: Oversigt over ekstraordinære effektiviseringsgevinster
C33: 2012 | E33: 2013 | G33: 2014 | I33: 2015 | K33: 2016
B34: Indhentet ekstraordinær effektiviseringsgevinst | C34: 7076984 | D34: kr. | E34: 8267314 | F34: kr. | H34: kr. | J34: kr. | L34: kr.
B35: Gevinst anvendt til investeringer | C35: 0 | D35: kr. | E35: 0 | F35: kr. | H35: kr. | J35: kr. | L35: kr.
B36: Gevinst anvendt til takstnedsættelse | C36: 0 | D36: kr. | E36: 15344298 | F36: kr. | H36: kr. | J36: kr. | L36: kr.
B37: Korrektion for effektiviseringsgevinst der ikke er anvendt inden 4 år | C37: 0 | D37: kr. | E37: 0 | F37: kr. | H37: kr. | J37: kr. | K37: =IF(C38>SUM(C35:I36),C38-SUM(E35:I36),0)*-1 -> 0 | L37: kr.
B38: Resterende gevinst | C38: =C34-C35-C36 -> 7076984 | D38: kr. | E38: =C38+E34-E35-E36 -> 0 | F38: kr. | G38: =E38+G34-G35-G36 -> 0 | H38: kr. | I38: =G38+I34-I35-I36 -> 0 | J38: kr. | K38: =K34-K35-K36+K37 -> 0 | L38: kr.
